Workbook

Sheet факт 2016
A1: Оплата ООО "НЭСК" на ЗАО "Волгаэнергосбыт" по договору купли-продажи электрической энергии в целях компенсации технологического расхода (потерь) при её передаче по электрическим сетям в 2016 году факт
A3: 2016 год факт
A4: 2016 год | B4: прием в сеть, тыс.кВт.ч. | C4: потери | F4: тариф, руб./тыс.квт.ч. | G4: сумма, руб. без НДС
C5: % (согласно решения РСТ) | D5: тыс.кВт.ч. | E5: корректив тыс.кВт.ч.
A6: январь | B6: 51,131.269 | C6: =E6/B6*100 -> 5.339 | D6: 2,670.262 | E6: =2549.2+180.582 -> 2,729.782 | F6: =G6/E6 -> 2339.093 | G6: =6236770.74+431199.12-282757.25 -> 6,385,212.61
A7: февраль | B7: 64,478.477 | C7: =E7/B7*100 -> 5.235 | D7: 3,354.373 | E7: 3,375.493 | F7: 1940.810 | G7: =E7*F7 -> 6,551,190.57
A8: март | B8: 67,439.485 | C8: =D8/B8*100 -> 5.285 | D8: 3,564.215 | F8: 2,037.290 | G8: =D8*F8 -> 7,261,339.58
A9: апрель | B9: 63,170.623 | C9: =D9/B9*100 -> 5.247 | D9: 3,314.836 | F9: 2,042.230 | G9: =D9*F9 -> 6,769,657.52
A10: май | B10: 55,429.551 | C10: =D10/B10*100 -> 5.202 | D10: 2,883.616 | F10: 2,224.560 | G10: 6,414,776.81
A11: июнь | B11: 63,605.809 | C11: =D11/B11*100 -> 5.246 | D11: 3,336.744 | F11: 2,259.460 | G11: =D11*F11 -> 7,539,239.60
A12: июль | B12: 61,487.400 | C12: 5.245 | D12: 3,225.034 | F12: 2,298.550 | G12: 7,412,901.90
A13: август | B13: 63,874.994 | C13: 5.269 | D13: 3,365.281 | F13: 2,249.810 | G13: 7,571,242.85
A14: сентябрь | B14: 69,100.900 | C14: 5.264 | D14: 3,637.639 | F14: 2,169.340 | G14: 7,891,275.79
A15: октябрь | B15: 72,672.548 | C15: 5.261 | D15: 3,823.471 | F15: 2,141.140 | G15: 8,186,586.70
A16: ноябрь | B16: 75,480.127 | C16: 5.254 | D16: 3,965.764 | F16: 2,204.400 | G16: 8,742,130.16
A17: декабрь | B17: 76,589.812 | C17: 5.238 | D17: 4,011.458 | F17: 1,971.860 | G17: 7,910,033.57
A18: ИТОГО | B18: =SUM(B6:B17) -> 784,460.995 | C18: =D18/B18*100 -> 5.256 | D18: =E6+E7+D8+D9+D10+D11+D12+D13+D14+D15+D16+D17 -> 41,233.333 | F18: =G18/D18 -> 2,149.610 | G18: =SUM(G6:G17) -> 88,635,587.660
